Workbook

Sheet EventConfig
A1: ID | B1: EventLinksId | C1: EventTriggerType | D1: EventTag | E1: EventType | F1: Score | G1: EventQuality | I1: PrizeIDs | J1: PrizeNums | K1: RelatedEvents | L1: RefreshProbability | M1: RefreshCount | N1: placeID | O1: XiantuID | Q1: EventConditionId | R1: EventValue | S1: EventCount | T1: EventName | U1: Description
A2: int | B2: int[] | C2: int | D2: int | E2: int | F2: int | G2: int | I2: int[] | J2: int[] | K2: int[] | L2: int | M2: int | N2: int | O2: int | Q2: int | R2: int[] | S2: int | T2: int | U2: int
Y3: 1 | Z3: 2 | AA3: 3 | AB3: 4 | AC3: 5 | AD3: 6 | AE3: 7 | AF3: 8 | AG3: 9 | AH3: 10 | AI3: 11 | AJ3: 12
A4: ID | B4: 事件包含的ID | C4: 事件类型： 1.通用事件 2.挂机事件 4.主线任务 5.仙山探险 99.无标记 | D4: tag 1主线2支线 3通用 4地图通用 5道友 | E4: 1.正常触发 2.直接结算 | F4: 增加进度值 | G4: 事件品质 | I4: 事件结局奖励 | J4: 事件结局奖励数量 | K4: 关联的事件Id | L4: 刷新的概率 （100=100%） | M4: 最大刷新数量 | N4: 属于哪张地图 | O4: 仙途日志ID | P4: 触发条件 | Q4: 触发条件类型 只能配处于什么状态和数值，不能配变化的数值 | R4: 触发效果值 | S4: 触发判定数量or次数 | T4: 任务标题 | U4: 任务详情界面的总描述 | V4: 标题 | W4: 整体描述 | X4: 总步数 | Y4: 步骤1 | Z4: 步骤2 | AA4: 步骤3 | AB4: 步骤4 | AC4: 步骤5 | AD4: 步骤6 | AE4: 步骤7 | AF4: 步骤8 | AG4: 步骤9 | AH4: 步骤10 | AI4: 步骤11 | AJ4: 步骤12
A5: 1 | B5: =_xlfn.TEXTJOIN(";",1,Y5:AG5) -> 1001;1002;1003;1004;1005 | C5: 1 | D5: 3 | E5: 1 | F5: 0 | G5: 1 | I5: 1001 | J5: 10 | P5: =IF(Q5="","",VLOOKUP(Q5,条件类型查询!A:B,2,FALSE)) -> 境界判断 | Q5: 3 | R5: 5 | T5: 174 | U5: 1936 | V5: 受伤的狼 | W5: 你发现一只奄奄一息的狼，决定上前一探究竟。 | Y5: 1001 | Z5: 1002 | AA5: 1003 | AB5: 1004 | AC5: 1005
A6: 2 | B6: =_xlfn.TEXTJOIN(";",1,Y6:AG6) -> 1010;1011;1012;1013;1014;1015;1016 | C6: 1 | D6: 3 | E6: 1 | F6: 0 | G6: 1 | I6: 1001 | J6: 10 | P6: =IF(Q6="","",VLOOKUP(Q6,条件类型查询!A:B,2,FALSE)) ->  | T6: 175 | U6: 1937 | V6: 鹬蚌相争 | W6: 附近的小树林闹的不可开交，你决定去看看怎么回事。 | Y6: 1010 | Z6: 1011 | AA6: 1012 | AB6: 1013 | AC6: 1014 | AD6: 1015 | AE6: 1016
A7: 3 | B7: 1020;1021;1022;1023;1024;1025;1026 | C7: 99 | D7: 2 | E7: 1 | F7: 10 | G7: 1 | I7: 1001 | J7: 10 | N7: 3 | O7: 2 | P7: =IF(Q7="","",VLOOKUP(Q7,条件类型查询!A:B,2,FALSE)) -> 拥有特定道具 | Q7: 1 | R7: 1004 | S7: 1 | T7: 176 | U7: 1938 | V7: 鹬蚌相争2 | W7: 附近的小树林闹的不可开交，你决定去看看怎么回事。 | Y7: 1020 | Z7: 1021 | AA7: 1022 | AB7: 1023 | AC7: 1024 | AD7: 1025 | AE7: 1026
P8: =IF(Q8="","",VLOOKUP(Q8,条件类型查询!A:B,2,FALSE)) -> 
A9: 4 | B9: 1030 | C9: 1 | D9: 1 | E9: 2 | F9: 0 | G9: 1 | I9: 1001 | J9: 10 | N9: 3 | O9: 2 | P9: =IF(Q9="","",VLOOKUP(Q9,条件类型查询!A:B,2,FALSE)) -> 触发概率 | Q9: 7 | R9: 500 | T9: 217 | U9: 1939 | V9: 溅血背包 | W9: 不远处有一个小红点，走近一看你发现是一个带血的背包。 | Y9: 1030
A10: 5 | B10: 1040 | C10: 1 | D10: 1 | E10: 2 | F10: 0 | G10: 1 | I10: 1001 | J10: 10 | N10: 2 | O10: 3 | P10: =IF(Q10="","",VLOOKUP(Q10,条件类型查询!A:B,2,FALSE)) ->  | T10: 218 | U10: 1940 | V10: 废弃矿山 | W10: 底下一座矿山甚是磅礴雄伟，走，去看一看。 | Y10: 1040
A11: 6 | B11: 1050 | C11: 1 | D11: 1 | E11: 2 | F11: 0 | G11: 1 | I11: 1001 | J11: 10 | N11: 2 | O11: 3 | P11: =IF(Q11="","",VLOOKUP(Q11,条件类型查询!A:B,2,FALSE)) ->  | T11: 219 | U11: 1941 | V11: 吵架声 | W11: 你被一男一女的吵架声吸引。 | Y11: 1050
A12: 7 | B12: 1060 | C12: 1 | D12: 1 | E12: 2 | F12: 0 | G12: 1 | I12: 1001 | J12: 10 | N12: 2 | O12: 3 | P12: =IF(Q12="","",VLOOKUP(Q12,条件类型查询!A:B,2,FALSE)) ->  | T12: 220 | U12: 1942 | V12: 一座道观 | W12: 远处一座道观仙气缭绕，似有仙人在此。 | Y12: 1060
P13: =IF(Q13="","",VLOOKUP(Q13,条件类型查询!A:B,2,FALSE)) -> 
A14: 11 | B14: 1101;1102 | C14: 2 | E14: 1 | F14: 0 | G14: 1 | I14: 1001 | J14: 10 | P14: =IF(Q14="","",VLOOKUP(Q14,条件类型查询!A:B,2,FALSE)) ->  | V14: 遇到怪物1-修为 | X14: =COUNTIF(EventLinkConfig!J:J,EventConfig!A14) -> 2 | Y14: =IF($X14>=Y$3,$A14*100+Y$3,"") -> 1101 | Z14: =IF($X14>=Z$3,$A14*100+Z$3,"") -> 1102
A15: 12 | B15: 1201;1202;1203 | C15: 2 | E15: 1 | F15: 0 | G15: 1 | I15: 1001 | J15: 10 | P15: =IF(Q15="","",VLOOKUP(Q15,条件类型查询!A:B,2,FALSE)) ->  | V15: 对话-功法灵气 | X15: =COUNTIF(EventLinkConfig!J:J,EventConfig!A15) -> 3 | Y15: =IF($X15>=Y$3,$A15*100+Y$3,"") -> 1201 | Z15: 1202 | AA15: 1203
A16: 13 | B16: 1301;1302;1303;1304 | C16: 2 | E16: 1 | F16: 0 | G16: 1 | I16: 1001 | J16: 10 | P16: =IF(Q16="","",VLOOKUP(Q16,条件类型查询!A:B,2,FALSE)) ->  | V16: 对话-法宝灵韵 | X16: =COUNTIF(EventLinkConfig!J:J,EventConfig!A16) -> 4 | Y16: =IF($X16>=Y$3,$A16*100+Y$3,"") -> 1301 | Z16: 1302 | AA16: 1303 | AB16: 1304
A17: 14 | B17: 1401;1402 | C17: 2 | E17: 1 | F17: 0 | G17: 1 | I17: 1001 | J17: 10 | P17: =IF(Q17="","",VLOOKUP(Q17,条件类型查询!A:B,2,FALSE)) ->  | V17: 遇到怪物2-修为 | X17: =COUNTIF(EventLinkConfig!J:J,EventConfig!A17) -> 2 | Y17: =IF($X17>=Y$3,$A17*100+Y$3,"") -> 1401 | Z17: 1402
A18: 15 | B18: 1501;1502 | C18: 2 | E18: 1 | F18: 0 | G18: 1 | I18: 1001 | J18: 10 | P18: =IF(Q18="","",VLOOKUP(Q18,条件类型查询!A:B,2,FALSE)) ->  | V18: 遇到怪物3-修为 | X18: =COUNTIF(EventLinkConfig!J:J,EventConfig!A18) -> 2 | Y18: =IF($X18>=Y$3,$A18*100+Y$3,"") -> 1501 | Z18: 1502
P19: =IF(Q19="","",VLOOKUP(Q19,条件类型查询!A:B,2,FALSE)) -> 
P20: =IF(Q20="","",VLOOKUP(Q20,条件类型查询!A:B,2,FALSE)) -> 
A21: 10001 | B21: 1000101;1000102;1000103;1000104 | C21: 4 | D21: 1 | E21: 1 | F21: 10 | G21: 1 | I21: 1001 | J21: 10 | N21: 1 | O21: 1 | P21: =IF(Q21="","",VLOOKUP(Q21,条件类型查询!A:B,2,FALSE)) ->  | T21: 1906 | U21: 1914 | V21: 鲲鹏何在 | W21: 北冥有鱼，其名为鲲……不过北海遥远，何时能寻得鲲鹏的踪迹。 好在我的神识尚在，可探天地，再加上刚刚的风铃，或许能寻得前路线索。 | X21: =COUNTIF(EventLinkConfig!J:J,EventConfig!A21) -> 4 | Y21: =IF($X21>=Y$3,$A21*100+Y$3,"") -> 1000101 | Z21: =IF($X21>=Z$3,$A21*100+Z$3,"") -> 1000102 | AA21: 1000103 | AB21: 1000104
A22: 10002 | B22: 1000201;1000202;1000203 | C22: 4 | D22: 1 | E22: 1 | F22: 10 | G22: 1 | I22: 1001 | J22: 10 | N22: 1 | O22: 1 | P22: =IF(Q22="","",VLOOKUP(Q22,条件类型查询!A:B,2,FALSE)) ->  | T22: 1907 | U22: 1915 | V22: 北海迷径1 | W22: 神识探得北海方向，有一条古径，隐于云山之间。 不过，古径深处妖气弥漫，有妖兽盘踞，需要破除后才能通过。 鲲鹏的秘密，可能和这些妖兽有关。 | X22: =COUNTIF(EventLinkConfig!J:J,EventConfig!A22) -> 3 | Y22: =IF($X22>=Y$3,$A22*100+Y$3,"") -> 1000201 | Z22: 1000202 | AA22: 1000203
A23: 10003 | B23: 1000301;1000302;1000303;1000304;1000305;1000306;1000307;1000308;1000309 | C23: 4 | D23: 1 | E23: 1 | F23: 10 | G23: 1 | I23: 1001 | J23: 10 | N23: 1 | O23: 1 | P23: =IF(Q23="","",VLOOKUP(Q23,条件类型查询!A:B,2,FALSE)) ->  | T23: 1908 | U23: 1916 | V23: 北海迷径2 | W23: 鲲鹏需要去南海最深处的天池，可缺少龙卷风，没有大风，大鹏无法飞起来 | X23: =COUNTIF(EventLinkConfig!J:J,EventConfig!A23) -> 9 | Y23: 1000301 | Z23: 1000302 | AA23: 1000303 | AB23: 1000304 | AC23: 1000305 | AD23: 1000306 | AE23: 1000307 | AF23: 1000308 | AG23: 1000309
A24: 10004 | B24: 1000401;1000402;1000403;1000404 | C24: 4 | D24: 1 | E24: 1 | F24: 10 | G24: 1 | I24: 1001 | J24: 10 | N24: 1 | O24: 1 | P24: =IF(Q24="","",VLOOKUP(Q24,条件类型查询!A:B,2,FALSE)) ->  | T24: 1909 | U24: 1917 | V24: 古径阵法 | W24: 需要达到境界 | X24: =COUNTIF(EventLinkConfig!J:J,EventConfig!A24) -> 4 | Y24: 1000401 | Z24: 1000402 | AA24: 1000403 | AB24: 1000404
A25: 10005 | B25: =_xlfn.TEXTJOIN(";",1,Y25:AG25) ->  | C25: 4 | D25: 1 | E25: 1 | F25: 10 | G25: 1 | I25: 1001 | J25: 10 | N25: 1 | O25: 1 | P25: =IF(Q25="","",VLOOKUP(Q25,条件类型查询!A:B,2,FALSE)) ->  | V25: 浮空之岛1 | W25: 需要达到境界 | X25: =COUNTIF(EventLinkConfig!J:J,EventConfig!A25) -> 0
A27: 1001 | B27: =_xlfn.TEXTJOIN(";",1,Y27:AG27) -> 1001;1002;1003;1004;1005 | C27: 99 | D27: 4 | E27: 1 | F27: 10 | G27: 1 | I27: 1001 | J27: 10 | T27: 1943 | U27: 1944 | V27: 受伤的鸟 | W27: 你发现一只奄奄一息的鸟，决定上前一探究竟。 | Y27: 1001 | Z27: 1002 | AA27: 1003 | AB27: 1004 | AC27: 1005
A29: 20001 | B29: =_xlfn.TEXTJOIN(";",1,Y29:AG29) -> 1001;1002;1003;1004;1005 | C29: 5 | E29: 1 | F29: 0 | G29: 1 | I29: 1001 | J29: 10 | T29: 174 | U29: 1936 | V29: 受伤的狼 | W29: 你发现一只奄奄一息的狼，决定上前一探究竟。 | Y29: 1001 | Z29: 1002 | AA29: 1003 | AB29: 1004 | AC29: 1005
A30: 20002 | B30: =_xlfn.TEXTJOIN(";",1,Y30:AG30) -> 1010;1011;1012;1013;1014;1015;1016 | C30: 5 | E30: 1 | F30: 0 | G30: 1 | I30: 1001 | J30: 10 | P30: =IF(Q30="","",VLOOKUP(Q30,条件类型查询!A:B,2,FALSE)) ->  | T30: 175 | U30: 1937 | V30: 鹬蚌相争 | W30: 附近的小树林闹的不可开交，你决定去看看怎么回事。 | Y30: 1010 | Z30: 1011 | AA30: 1012 | AB30: 1013 | AC30: 1014 | AD30: 1015 | AE30: 1016
A31: 20003 | B31: 1001;1002;1003;1004;1005 | C31: 5 | E31: 1 | F31: 0 | G31: 1 | I31: 1001 | J31: 10 | T31: 1943 | U31: 1944 | V31: 受伤的鸟 | W31: 你发现一只奄奄一息的鸟，决定上前一探究竟。 | Y31: 1001 | Z31: 1002 | AA31: 1003 | AB31: 1004 | AC31: 1005
A33: 9001 | B33: =_xlfn.TEXTJOIN(";",1,Y33:AG33) -> 1001;1002;1003;1004;1005 | C33: 99 | D33: 3 | E33: 1 | F33: 0 | G33: 1 | I33: 1001 | J33: 10 | T33: 174 | U33: 1936 | V33: 受伤的狼 | W33: 你发现一只奄奄一息的狼，决定上前一探究竟。 | Y33: 1001 | Z33: 1002 | AA33: 1003 | AB33: 1004 | AC33: 1005
A34: 9002 | B34: =_xlfn.TEXTJOIN(";",1,Y34:AG34) -> 1010;1011;1012;1013;1014;1015;1016 | C34: 99 | D34: 3 | E34: 1 | F34: 0 | G34: 1 | I34: 1001 | J34: 10 | P34: =IF(Q34="","",VLOOKUP(Q34,条件类型查询!A:B,2,FALSE)) ->  | T34: 175 | U34: 1937 | V34: 鹬蚌相争 | W34: 附近的小树林闹的不可开交，你决定去看看怎么回事。 | Y34: 1010 | Z34: 1011 | AA34: 1012 | AB34: 1013 | AC34: 1014 | AD34: 1015 | AE34: 1016
A35: 9003 | B35: 9003;9004;9005;9006;9007;9008 | C35: 99 | D35: 5 | E35: 1 | F35: 0 | G35: 1 | I35: 1001 | J35: 10 | T35: 2035 | U35: 2036 | V35: 幽谷剑鸣 | W35: 你在闭关修炼时，感受到一股凌厉的剑意波动。深入探查，发现一名白衣剑修“清霜”盘坐于谷中，周围剑气环绕，正与一柄散发不祥气息的灵剑对峙。她似在参悟剑诀，却灵气不足，剑灵桀骜。 | Y35: 9003 | Z35: 9004 | AA35: 9005 | AB35: 9006 | AC35: 9007 | AD35: 9008
A38: 9025 | B38: 9025;9026 | C38: 1 | D38: 3 | E38: 1 | F38: 0 | G38: 1 | I38: 1001 | J38: 10 | T38: 2067 | U38: 2068 | V38: 惠子.没用的大葫芦 | W38: 惠子种的葫芦没用，他非常生气
A40: 9014 | B40: 9014 | C40: 99 | D40: 3 | E40: 1 | F40: 0 | G40: 1 | I40: 1001 | J40: 10 | K40: 9031 | T40: 2069 | U40: 2070 | V40: 发现魔修 | W40: 发现一群魔修，正在夺人钱财
A42: 9031 | B42: 9031 | C42: 99 | D42: 3 | E42: 1 | F42: 0 | G42: 1 | I42: 1001 | J42: 10 | L42: 30 | M42: 2 | T42: 2071 | U42: 2072 | V42: 魔修 | W42: 打败魔休

Sheet EventLinkConfig
A1: ID | B1: conciseEventMessage | D1: EventConditionMessage | F1: NPCID | H1: LanID | J1: EventID | L1: ConditionId | N1: optionType | O1: optionPara1 | P1: optionPara2 | V1: PrizeIDs | W1: PrizeNums | X1: ResultType | Y1: ResultOptions
A2: int | B2: int | D2: int | F2: int | H2: int[] | J2: int | L2: int[] | N2: int | O2: int[] | P2: int[] | V2: int[] | W2: int[] | X2: int | Y2: int[]
A4: 条件ID | B4: 任务列表中的简洁描述 | C4: 任务列表中的简洁描述 | D4: 无任务目标时的补充文本 | E4: 无任务目标时的补充文本 | F4: 对话NPCID | G4: NPC | H4: 对话 | I4: 对话1 | J4: 属于哪个事件 | K4: 步骤 | L4: 条件判断类型 | M4: 条件判断内容 | N4: 步骤类型 1=提供选项 2=进入战斗 3=获得奖励 4=扣除道具 | O4: 事件常量1 1=步骤IDs 2=战斗ID | P4: 事件常量2 1=事件文本 | Q4: 选择1 | R4: 选择1 | S4: 选择2 | T4: 选择2 | V4: 事件结局奖励 | W4: 事件结局奖励数量 | X4: 事件结束类型 1：跳转步骤 2：根据战斗结果跳转 3.触发新事件 | Y4: 事件结局后提供的选项 1.EventLinkId 2.胜利id;失败id 3.EventConfigId
A5: 100 | B5: 216 | H5: 216 | I5: 你被怪物击败，神识也随之消散了。
A7: 1001 | B7: 177 | F7: 2 | H7: 177 | I7: 你遇到一只奄奄一息的野狼，从周围四散的血迹来看，想必它刚才经历了一场恶战。 | N7: 1 | O7: 1002;1003 | P7: 198;199 | R7: 趁它虚弱赶紧除掉它！ | T7: 你不忍见它受苦，选择帮它减轻痛苦。
A8: 1002 | B8: 178 | H8: 178 | I8: 野狼用它最后一口气，朝你扑了过来！ | N8: 2 | O8: 100001 | X8: 2 | Y8: 1004;100
A9: 1003 | B9: 179 | H9: 179 | I9: 你抽出匕首准备了结它的生命，却发现怀中还躺着一只刚出生的狼崽。 | N9: 1 | O9: 1005 | P9: 200
A10: 1004 | B10: 180 | H10: 180 | I10: 随着你的最后一击，野狼应声倒下，你罔顾它幽怨的眼神，从它怀中拿走了一些财物。 | N10: 3 | V10: 1002 | W10: 100
A11: 1005 | B11: 181 | H11: 181 | I11: 母狼似乎懂你要做什么，眼神归于平静。你终结了她，决定收养这只小狼仔。 | N11: 3 | V11: 1001 | W11: 50
A13: 1010 | B13: 182 | H13: 182 | I13: 从不远处传来刀剑声，听起来双方已经精疲力尽了。 | N13: 1 | O13: 1011;1012 | P13: 201;202 | R13: 去看看 | T13: (需拥有法宝凝神珠）听起来都是鸡毛蒜皮的小摩擦，你选择祭出凝神珠化解他们的怨气。
A14: 1011 | B14: 183 | H14: 183 | I14: 你走进一看，原来是一伙山贼分赃不均内讧了起来。你看着旁边被砍的七零八落的轿子和这群山贼，选择怎么做呢： | N14: 1 | O14: 1014;1015 | P14: 203;204 | R14: 你顿时杀心四起，决定杀了贼寇，救出轿中之人 | T14: 盗贼们个个双眼杀的通红，你决定来个渔翁得利。
A15: 1012 | B15: 184 | H15: 184;187 | I15: 法宝现身，效果立竿见影，刀剑声逐渐消失，这个世界安静了。 | N15: 3 | V15: 1001 | W15: 10 | AA15: 1 | AB15: 1001;1
A16: 1014 | B16: 185 | H16: 185 | I16: 你怒斥贼寇的恶行，贼寇们被你激怒了，准备迎战！ | N16: 2 | O16: 100002 | X16: 2 | Y16: 1016;100 | AA16: 2 | AB16: 4;150
A17: 1015 | B17: 186 | H17: 186;189 | I17: 你趁人不备顺走了轿内主人的包裹，任留轿内人痛苦的挣扎。 | N17: 3 | V17: 1003 | W17: 1000
A18: 1016 | B18: 188 | H18: 188 | I18: 杀退贼寇，你上演了一出英雄救美的桥段。姑娘为了答谢你的救命之恩，将藏在贴身处的珍贵首饰赠与你作为定情信物。 | V18: 1001 | W18: 200
A20: 1020 | B20: 190 | H20: 190 | I20: 从不远处传来刀剑声，听起来双方已经精疲力尽了。 | N20: 1 | O20: 1021;1022 | P20: 201;202 | R20: 去看看 | T20: 使用法宝息事宁人
A21: 1021 | B21: 191 | H21: 191 | I21: 你走进一看，原来是一伙山贼抢了一名坐在官轿内的女子，因分赃不均内讧了起来。山贼二话不说就朝你冲了过来！ | N21: 2 | O21: 100003 | V21: 1002 | W21: 100 | X21: 2 | Y21: 1026;100
A22: 1022 | B22: 192 | H22: 192 | I22: 法宝现身，效果立竿见影，刀剑声逐渐消失，这个世界安静了。 | N22: 4 | V22: 1002 | W22: 10 | AA22: 1 | AB22: 1001;1
A23: 1024 | B23: 193 | H23: 193;196 | I23: 你大声怒斥贼寇的恶行，贼首发现你了，准备迎战！ | N23: 2 | O23: 100004 | V23: 1004 | W23: 100 | X23: 2 | Y23: 1016;100 | AA23: 2 | AB23: 4;150
A24: 1025 | B24: 194 | H24: 194;197 | I24: 你趁人不备顺走了轿内主人的包裹，任留轿内人痛苦的挣扎。 | N24: 3 | V24: 1002 | W24: 1000
A25: 1026 | B25: 207 | H25: 207 | I25: 你将山贼们打的落花流水，成功吸引了山贼头子的注意。 | N25: 1 | O25: 1024;1025 | P25: 205;206 | R25: 选择正面迎战山贼头领（困难） | T25: 你决定避开山贼头领的视线，来个渔翁得利。
A27: 1030 | B27: 221 | H27: 221 | I27: 发现一个血迹斑斑的背包，好像刚刚发生了战斗，我翻翻背包... | N27: 3 | V27: 1002 | W27: 10
A29: 1040 | B29: 222 | H29: 222 | I29: 啥也没有....除了钱 | N29: 3 | V29: 1002 | W29: 10
A31: 1050 | B31: 223 | H31: 223 | I31: 两夫妻在吵架，似乎为了一件大事.. | N31: 3 | V31: 1002;1001 | W31: 10;20
A33: 1060 | B33: 224 | H33: 224 | I33: 没有任何发现，但感觉空气很好....下次有空再来看看
A37: =J37*100+K37 -> 1101 | H37: 208 | I37: 事件10001：一只[怪物1]袭击了你，准备迎战 | J37: 11 | K37: =IF(J37=J36,K36+1,1) -> 1 | N37: 2 | O37: 100001 | X37: 2 | Y37: 1102;100
A38: =J38*100+K38 -> 1102 | H38: 209 | I38: 你击败了怪物，并从它身上吸取了一些修为 | J38: 11 | K38: =IF(J38=J37,K37+1,1) -> 2 | N38: 3 | V38: 1003 | W38: 3000
A40: =J40*100+K40 -> 1201 | H40: 210 | I40: 你偶遇一处仙气四溢无人生活的洞穴 | J40: 12 | K40: =IF(J40=J39,K39+1,1) -> 1 | X40: 1 | Y40: =A41 -> 1202
A41: =J41*100+K41 -> 1202 | H41: 211 | I41: 不知哪位高人在洞穴内壁留下绝世秘籍 | J41: 12 | K41: =IF(J41=J40,K40+1,1) -> 2 | X41: 1 | Y41: =A42 -> 1203
A42: =J42*100+K42 -> 1203 | H42: 1903 | I42: 你仔细研读后，功法得到精进 | J42: 12 | K42: =IF(J42=J41,K41+1,1) -> 3 | N42: 3 | V42: 1005 | W42: 500
A44: =J44*100+K44 -> 1301 | H44: 212 | I44: 你在飞行途中不慎滑倒 | J44: 13 | K44: =IF(J44=J43,K43+1,1) -> 1 | X44: 1 | Y44: =A45 -> 1302
A45: =J45*100+K45 -> 1302 | H45: 213 | I45: 原来是脚下有一块圆润的微微发光的石头 | J45: 13 | K45: =IF(J45=J44,K44+1,1) -> 2 | X45: 1 | Y45: =A46 -> 1303
A46: 1303 | H46: 214 | I46: 你拾起来一看，原来它蕴含了丰富的法宝灵韵 | J46: 13 | K46: 3 | X46: 1 | Y46: =A47 -> 1304
A47: 1304 | H47: 215 | I47: 原本郁闷的心情，突然变的好了起来，哈哈~ | J47: 13 | K47: 4 | N47: 3 | V47: 1006 | W47: 500
A49: 1401 | H49: 1901 | I49: 事件10005：一只[怪物2]袭击了你，准备迎战 | J49: 14 | K49: =IF(J49=J48,K48+1,1) -> 1 | N49: 2 | O49: 100002 | X49: 2 | Y49: 1402;100
A50: =J50*100+K50 -> 1402 | H50: 209 | I50: 你击败了怪物，并从它身上吸取了一些修为 | J50: 14 | K50: =IF(J50=J49,K49+1,1) -> 2 | N50: 3 | V50: 1003 | W50: 3000
A52: 1501 | H52: 1902 | I52: 事件10006：一只[怪物3]袭击了你，准备迎战 | J52: 15 | K52: =IF(J52=J51,K51+1,1) -> 1 | N52: 2 | O52: 100003 | X52: 2 | Y52: 1502;100
A53: =J53*100+K53 -> 1502 | H53: 209 | I53: 你击败了怪物，并从它身上吸取了一些修为 | J53: 15 | K53: =IF(J53=J52,K52+1,1) -> 2 | N53: 3 | V53: 1003 | W53: 3000
A55: 9003 | B55: 2036 | H55: 2036 | I55: 你在闭关修炼时，感受到一股凌厉的剑意波动。深入探查，发现一名白衣剑修“清霜”盘坐于谷中，周围剑气环绕，正与一柄散发不祥气息的灵剑对峙。她似在参悟剑诀，却灵气不足，剑灵桀骜。 | N55: 1 | O55: 9004;9006 | P55: 2041;2042
A56: 9004 | B56: 2037 | H56: 2037 | I56: 你上前以剑意对抗剑灵 | N56: 2 | O56: 100001 | X56: 2 | Y56: 9005;100
A57: 9005 | B57: 2038 | H57: 2038 | I57: 成功压制剑灵，清霜赠你“霜华剑符”并结下道友之谊
A58: 9006 | B58: 2039 | H58: 2039 | I58: 你察觉谷中灵气匮乏，清霜剑意凝滞。神识探查得知，附近秘境可采集“玄冰花”
A59: 9007 | B59: 2040 | H59: 2040 | I59: 献上玄冰花，清霜炼化灵气突破瓶颈，赠你“玄霜剑意” | N59: 4 | X59: 1 | Y59: 9007
A60: 9008 | N60: 3 | V60: 1001 | W60: 999
A64: 9025 | B64: 2074 | D64: 2073 | E64: 和惠子交谈 | H64: 2074 | I64: 惠子种的葫芦没用，他非常生气，需要打败魔休 | N64: 1 | O64: 9026 | P64: 2075
A65: 9026 | I65: 选择后接新的事件 | R65: 接受任务 | X65: 3 | Y65: 9014
A68: 9014 | B68: 2070 | E68: 击杀魔休 | L68: 3
A71: 9031 | B71: 2076 | C71: 出现Boss魔修 | D71: 2077 | E71: 打败魔修 | N71: 2 | O71: 100001
A73: =J73*100+K73 -> 1000101 | B73: 2086 | C73: 使用风铃唤醒还未泯灭的神识 | H73: 2083 | I73: 北冥有鱼，其名为鲲…… | J73: 10001 | K73: =IF(J73=J72,K72+1,1) -> 1 | M73: =IF(L73="","",VLOOKUP(L73,EventConditionConfig!A:C,3,FALSE)) ->  | X73: =IF(A73="","",IF(N73=1,"",IF(A74="",3,1))) -> 1 | Y73: =IF(X73=1,A74,IF(X73=3,LEFT(A73,5)+1,"")) -> 1000102
A74: =J74*100+K74 -> 1000102 | B74: 2086 | C74: 使用风铃唤醒还未泯灭的神识 | H74: 2084 | I74: 不过北海遥远，何时能寻得鲲鹏的踪迹。 | J74: 10001 | K74: =IF(J74=J73,K73+1,1) -> 2 | M74: =IF(L74="","",VLOOKUP(L74,EventConditionConfig!A:C,3,FALSE)) ->  | X74: =IF(A74="","",IF(N74=1,"",IF(A75="",3,1))) -> 1 | Y74: =IF(X74=1,A75,IF(X74=3,LEFT(A74,5)+1,"")) -> 1000103
A75: =J75*100+K75 -> 1000103 | B75: 2086 | C75: 使用风铃唤醒还未泯灭的神识 | H75: 2085 | I75: 好在我的神识尚在，可探天地，再加上刚刚的风铃，或许能寻得前路线索。 | J75: 10001 | K75: 3 | M75: =IF(L75="","",VLOOKUP(L75,EventConditionConfig!A:C,3,FALSE)) ->  | X75: 1 | Y75: 1000104
A76: =J76*100+K76 -> 1000104 | B76: 2086 | C76: 使用风铃唤醒还未泯灭的神识 | J76: 10001 | K76: 4 | L76: 5 | M76: =IF(L76="","",VLOOKUP(L76,EventConditionConfig!A:C,3,FALSE)) -> 使用神识 | X76: 3 | Y76: 10002
A78: =J78*100+K78 -> 1000201 | B78: 2091 | C78: 前往妖兽盘踞的地方 | H78: 2092 | I78: 神识发现有一条古径，隐于云山之间，不过似乎有妖兽盘踞。 | J78: 10002 | K78: 1 | X78: 1 | Y78: =IF(X78=1,A79,IF(X78=3,LEFT(A78,5)+1,"")) -> 1000202
A79: =J79*100+K79 -> 1000202 | B79: 2091 | C79: 前往妖兽盘踞的地方 | H79: 2093 | I79: 没其他办法了，过去看看吧。 | J79: 10002 | K79: 2 | X79: 1 | Y79: 1000203
A80: =J80*100+K80 -> 1000203 | B80: 2091 | C80: 前往妖兽盘踞的地方 | D80: 2094 | E80: 继续飞行一段时间 | J80: 10002 | K80: 3 | M80: =IF(L80="","",VLOOKUP(L80,EventConditionConfig!A:C,3,FALSE)) ->  | X80: 3 | Y80: 10003
A82: 1000301 | B82: 2095 | C82: 蜩鸟和小麻雀对你的到来很好奇 | G82: =IF(F82="","",VLOOKUP(F82,EventNPC!A:E,5,FALSE)) ->  | H82: 2096 | I82: 应该就是这里了，似乎有古老的阵法挡住了去路 | J82: 10003 | K82: 1 | X82: 1 | Y82: 1000302
A83: =J83*100+K83 -> 1000302 | B83: 2095 | C83: 蜩鸟和小麻雀对你的到来很好奇 | G83: =IF(F83="","",VLOOKUP(F83,EventNPC!A:E,5,FALSE)) ->  | H83: 2097 | I83: （结界门前，三只小鸟飞来，落在一旁古松上） | J83: 10003 | K83: 2 | X83: 1 | Y83: 1000303
A84: =J84*100+K84 -> 1000303 | B84: 2095 | C84: 蜩鸟和小麻雀对你的到来很好奇 | F84: 101 | G84: =IF(F84="","",VLOOKUP(F84,EventNPC!A:E,5,FALSE)) -> 蜩鸟 | H84: 2098 | I84: （拍翅）：“咦？又是妄图穿行北海之人？” | J84: 10003 | K84: =IF(J84=J83,K83+1,1) -> 3 | N84: 1 | O84: =A85 -> 1000304 | P84: =_xlfn.TEXTJOIN(";",1,Q84,S84) -> 2099 | Q84: 2099 | R84: 我在寻找鲲鹏，你们知道它在哪里吗？
A85: =J85*100+K85 -> 1000304 | B85: 2095 | C85: 蜩鸟和小麻雀对你的到来很好奇 | F85: 102 | G85: =IF(F85="","",VLOOKUP(F85,EventNPC!A:E,5,FALSE)) -> 小麻雀 | H85: 2100 | I85: （扑棱翅膀）是想要从北海飞往南海的超级大鸟吧？ | J85: 10003 | K85: =IF(J85=J84,K84+1,1) -> 4 | X85: 1 | Y85: 1000305
A86: =J86*100+K86 -> 1000305 | B86: 2095 | C86: 蜩鸟和小麻雀对你的到来很好奇 | F86: 102 | G86: =IF(F86="","",VLOOKUP(F86,EventNPC!A:E,5,FALSE)) -> 小麻雀 | H86: 2101 | I86: 我就想不明白，她为何要飞如此之远，太奇怪啦！ | J86: 10003 | K86: =IF(J86=J85,K85+1,1) -> 5 | N86: 1 | O86: =A87 -> 1000306 | P86: 2102 | Q86: 2102 | R86: 鲲鹏是在追求心中的目标吧。
A87: =J87*100+K87 -> 1000306 | B87: 2095 | C87: 蜩鸟和小麻雀对你的到来很好奇 | F87: 102 | G87: =IF(F87="","",VLOOKUP(F87,EventNPC!A:E,5,FALSE)) -> 小麻雀 | H87: 2103 | I87: （偏头想了想）目标？我天天在这里上蹿下跳，在附近树林飞来飞去，就已经很幸福啦。 | J87: 10003 | K87: =IF(J87=J86,K86+1,1) -> 6 | X87: 1 | Y87: 1000307
A88: =J88*100+K88 -> 1000307 | B88: 2095 | C88: 蜩鸟和小麻雀对你的到来很好奇 | F88: 102 | G88: =IF(F88="","",VLOOKUP(F88,EventNPC!A:E,5,FALSE)) -> 小麻雀 | H88: 2104 | I88: 就那大傻鸟，非要飞那么远，又笨又蠢...真没意思。 | J88: 10003 | K88: =IF(J88=J87,K87+1,1) -> 7 | N88: 1 | O88: =A89 -> 1000308 | P88: 2105;2106 | Q88: 2105 | R88: 你说得也有一定道理… | S88: 2106 | T88: 你懂什么..这大鹏鸟可比你更有志向多了。
A89: =J89*100+K89 -> 1000308 | B89: 2095 | C89: 蜩鸟和小麻雀对你的到来很好奇 | F89: 101 | G89: =IF(F89="","",VLOOKUP(F89,EventNPC!A:E,5,FALSE)) -> 蜩鸟 | H89: 2107 | I89: （翻飞一圈）志向有什么用？到头来还不是风停了就落地。 | J89: 10003 | K89: =IF(J89=J88,K88+1,1) -> 8 | N89: 1 | O89: =A90 -> 1000309 | P89: 2108 | Q89: 2108 | R89: ......
A90: =J90*100+K90 -> 1000309 | B90: 2095 | C90: 蜩鸟和小麻雀对你的到来很好奇 | G90: =IF(F90="","",VLOOKUP(F90,EventNPC!A:E,5,FALSE)) ->  | H90: 2109 | I90: （此时，结界微动，一缕风穿林而过，古径阵法竟有一丝松动） | J90: 10003 | K90: =IF(J90=J89,K89+1,1) -> 9 | X90: 3 | Y90: 10004
A92: =J92*100+K92 -> 1000401 | B92: 2110 | C92: 原来它们就是镇守阵法的结界兽 | D92: 2115 | E92: 击败结界兽 | F92: 101 | G92: =IF(F92="","",VLOOKUP(F92,EventNPC!A:E,5,FALSE)) -> 蜩鸟 | H92: 2111 | I92: 这结界似乎有所反应… | J92: 10004 | K92: =IF(J92=J91,K91+1,1) -> 1 | M92: =IF(L92="","",VLOOKUP(L92,EventConditionConfig!A:C,3,FALSE)) ->  | N92: 1 | O92: =A93 -> 1000402 | P92: =_xlfn.TEXTJOIN(";",1,Q92,S92) -> 2112 | Q92: 2112 | R92: 与你们聊天很有意思，不过今天我是非过去不可，没人能阻止我重返仙途！
A93: =J93*100+K93 -> 1000402 | B93: 2110 | C93: 原来它们就是镇守阵法的结界兽 | D93: 2115 | E93: 击败结界兽 | F93: 102 | G93: =IF(F93="","",VLOOKUP(F93,EventNPC!A:E,5,FALSE)) -> 小麻雀 | H93: 2113 | I93: "小鸟.."现身吧！ | J93: 10004 | K93: =IF(J93=J92,K92+1,1) -> 2 | M93: =IF(L93="","",VLOOKUP(L93,EventConditionConfig!A:C,3,FALSE)) ->  | P93: =_xlfn.TEXTJOIN(";",1,Q93,S93) ->  | X93: =IF(A93="","",IF(N93=1,"",IF(A94="",3,1))) -> 1 | Y93: =IF(X93=1,A94,IF(X93=3,LEFT(A93,5)+1,"")) -> 1000403
A94: =J94*100+K94 -> 1000403 | B94: 2110 | C94: 原来它们就是镇守阵法的结界兽 | D94: 2115 | E94: 击败结界兽 | F94: 101 | G94: =IF(F94="","",VLOOKUP(F94,EventNPC!A:E,5,FALSE)) -> 蜩鸟 | H94: 2114 | I94: （轻轻飞下来..）又来...来吧来吧.. | J94: 10004 | K94: =IF(J94=J93,K93+1,1) -> 3 | M94: =IF(L94="","",VLOOKUP(L94,EventConditionConfig!A:C,3,FALSE)) ->  | N94: 2 | O94: 100001 | P94: =_xlfn.TEXTJOIN(";",1,Q94,S94) ->  | X94: 2 | Y94: =A95 -> 1000404
A95: =J95*100+K95 -> 1000404 | B95: 2110 | C95: 原来它们就是镇守阵法的结界兽 | F95: 102 | G95: =IF(F95="","",VLOOKUP(F95,EventNPC!A:E,5,FALSE)) -> 小麻雀 | H95: 2115 | I95: 怎么想过去，就去吧.. | J95: 10004 | K95: =IF(J95=J94,K94+1,1) -> 4 | M95: =IF(L95="","",VLOOKUP(L95,EventConditionConfig!A:C,3,FALSE)) ->  | P95: =_xlfn.TEXTJOIN(";",1,Q95,S95) ->  | X95: =IF(A95="","",IF(N95=1,"",IF(A96="",3,1))) -> 3 | Y95: =IF(X95=1,A96,IF(X95=3,LEFT(A95,5)+1,"")) -> 10005

Sheet EventConditionConfig
A1: ID | B1: message | E1: Operation | G1: ConditionType | H1: ConditionPara | I1: finishCount
A2: int | B2: int | E2: int | G2: int | H2: int[] | I2: int
A4: ID | B4: 描述 | E4: 与0 或1 | G4: 条件判断类型 | H4: 条件判断值 | I4: 条件完成次数or数量 | J4: 提示 | K4: 跳转
A5: 1 | B5: 2078 | C5: 拥有金币 | D5: =CONCATENATE(C5,"{0}/{1}") -> 拥有金币{0}/{1} | G5: 1 | H5: 1001 | I5: 10
A6: 2 | B6: 2079 | C6: 达到境界 | D6: =CONCATENATE(C6,"{0}/{1}") -> 达到境界{0}/{1} | G6: 3 | H6: 10 | I6: 1
A7: 3 | B7: 2080 | C7: 击杀魔休 | D7: 击杀魔休{0}/{1} | G7: 5 | H7: 100001 | I7: 5
A8: 4 | B8: 2081 | C8: 获得钻石 | D8: 获得钻石{0}/{1} | G8: 6 | H8: 1002 | I8: 10
A9: 5 | B9: 2082 | C9: 使用神识 | D9: 使用神识{0}/{1} | G9: 8 | I9: 1
A10: 6 | B10: 2094 | C10: 继续飞行一段时间 | D10: 继续飞行一段时间{0}/{1} | G10: 9 | I10: 6
A11: 7 | C11: 击败结界兽 | D11: 击败结界兽{0}/{1} | G11: 5 | H11: 100001 | I11: 1

Sheet 条件类型查询
A1: ID | B1: 条件判断类型 | C1: 条件判断值 | D1: 条件完成次数or数量 | E1: 额外文本 | F1: 不可用 | G1: 是否可用于事件
A2: 1 | B2: 拥有特定道具 | C2: 道具ID | D2: 数量≥ | E2: 检测背包道具 | G2: 1
A3: 2 | B3: 灵根判定 | C3: 哪个灵根 | D3: 灵根值≥ | F3: 1
A4: 3 | B4: 境界判断 | C4: 境界id | G4: 1
A5: 5 | B5: 战斗胜利 | C5: 战斗组ID | D5: 胜利次数≥
A6: 6 | B6: 获得道具 | C6: 道具的ID | D6: 数量≥ | E6: 探测出事件才开始检测
A7: 7 | B7: 触发概率 | C7: 概率值 1000=100% | G7: 1
A8: 8 | B8: 使用神识 | D8: 数量≥
A9: 9 | B9: 游戏在线多少时长（秒） | D9: 时间≥（秒） | G9: 1

Sheet EventNPC
A1: ID | B1: name | C1: ID | D1: DaoyouID
A2: int | B2: int | C2: int | D2: int
A4: ID | B4: 名字 | C4: 半身像icon | D4: 道友ID | E4: 名称
A5: 1 | E5: 玩家
A6: 2 | D6: 1 | E6: 道友1
A7: 3 | D7: 2 | E7: 道友2
A8: 4 | D8: 3 | E8: 道友3
A9: 5 | D9: 4 | E9: 道友4
A10: 6 | D10: 5 | E10: 道友5
A11: 7 | D11: 6 | E11: 道友6
A12: 8 | D12: 7 | E12: 道友7
A13: 9 | D13: 8 | E13: 道友8
A14: 10 | D14: 9 | E14: 道友9
A15: 11 | D15: 10 | E15: 道友10
A17: 100 | E17: 玩家
A18: 101 | E18: 蜩鸟
A19: 102 | E19: 小麻雀

Sheet XianTuLogConfig
A1: ID | B1: EventType | C1: Title | D1: Desc | E1: BigMapID
A2: int | B2: int | C2: int | D2: int | E2: int
A4: ID | B4: 1主线 2事件 | C4: 名称 | D4: 描述 | E4: 属于哪个章节
A5: 1 | B5: 1 | C5: 2087 | D5: 2089 | E5: 1 | F5: 第一章.逍遥游 | G5: 多次渡劫失败的你，误入“无何有之乡”，在这里受到了列子的指引，踏上了寻找七道心境的修仙之路。
A6: 2 | B6: 2 | C6: 2088 | D6: 2090 | E6: 2 | F6: 无用的大葫芦 | G6: 惠子种出了巨大葫芦，他觉得毫无用处，非常生气！
A7: 3 | B7: 2 | C7: 2088 | D7: 2090 | E7: 3 | F7: 无用的大葫芦 | G7: 惠子种出了巨大葫芦，他觉得毫无用处，非常生气！
